[Event "2nd Irena Warakomska Memorial-A"]
[Site "Suwalki"]
[Date "2018.08.03"]
[Round "3"]
[White "Kumala, Aleksander"]
[Black "Bernadskiy, Vitaliy"]
[Result "0-1"]
[ECO "B20"]
[WhiteElo "2238"]
[BlackElo "2544"]
[Annotator "ChessBase"]
[PlyCount "78"]
[EventDate "2018.08.01"]
[EventType "swiss"]
[EventCountry "POL"]
[SourceTitle "playchess.com"]
[Source "ChessBase"]
[SourceQuality "1"]
[TimeControl "40/5400+30:1800+30"]

1. e4 {[%emt 0:01:56]} c5 {[%emt 0:00:00]} 2. b3 {[%emt 0:01:32]} g6 {[%emt 0:00:00]} 3. Bb2 {[%emt 0:00:03]} Nf6 {[%emt 0:00:00]} 4. Qf3 {[%emt 0:00:05]} d6 {[%emt 0:00:37]} 5. Bb5+ {[%emt 0:00:24]} Nbd7 {[%emt 0:04:10]} 6. Bxf6 {[%emt 0:00:11]} exf6 {[%emt 0:00:03]} 7. Qd3 {[%emt 0:00:08]} a6 {[%emt 0:02:19]} 8. Bxd7+ {[%emt 0:00:23]} Bxd7 {[%emt 0:01:04]} 9. Nc3 {[%emt 0:02:23]} f5 {[%emt 0:02:05]} 10. O-O-O {[%emt 0:05:58]} Qf6 {[%emt 0:09:18]} 11. exf5 {[%emt 0:14:13]} O-O-O {[%emt 0:04:44]} 12. fxg6 {[%emt 0:01:11]} hxg6 {[%emt 0:00:49]} 13. Qf3 {[%emt 0:02:52]} Qg7 {[%emt 0:04:00]} 14. Nge2 {[%emt 0:10:29]} Bc6 {[%emt 0:00:28]} 15. Qg3 {[%emt 0:00:19]} Be7 {[%emt 0:00:08]} 16. d4 {[%emt 0:09:39]} Bh4 {[%emt 0:02:07]} 17. Qe3 {[%emt 0:00:36]} Bxg2 {[%emt 0:11:12]} 18. Rhg1 {[%emt 0:00:31]} Bc6 {[%emt 0:00:05]} 19. dxc5 {[%emt 0:02:36]} Rde8 {[%emt 0:01:17]} 20. Qd4 {[%emt 0:10:46]} Qxd4 {[%emt 0:06:36]} 21. Nxd4 {[%emt 0:00:11]} Bxf2 {[%emt 0:00:27]} 22. Nxc6 {[%emt 0:04:46]} Bxg1 {[%emt 0:00:42]} 23. cxd6 {[%emt 0:00:15]} Be3+ {[%emt 0:04:22]} 24. Kb2 {[%emt 0:00:24]} Kd7 {[%emt 0:01:09]} 25. Na5 {[%emt 0:01:10]} Bb6 {[%emt 0:00:15]} 26. Nc4 {[%emt 0:00:30]} Bd8 {[%emt 0:00:03]} 27. Rd2 {[%emt 0:06:50]} b5 {[%emt 0:00:17]} 28. Na3 {[%emt 0:01:31]} b4 {[%emt 0:00:06]} 29. Nd5 {[%emt 0:00:12]} bxa3+ {[%emt 0:00:10]} 30. Kxa3 {[%emt 0:00:06]} Re5 {[%emt 0:00:52]} 31. c4 {[%emt 0:00:23]} Kxd6 {[%emt 0:00:06]} 32. Nb4+ {[%emt 0:00:23]} Kc7 {[%emt 0:00:51]} 33. Nxa6+ {[%emt 0:00:25]} Kb7 {[%emt 0:00:04]} 34. Nb4 {[%emt 0:00:24]} Be7 {[%emt 0:00:52]} 35. Rd7+ {[%emt 0:00:18]} Kc8 {[%emt 0:00:59]} 36. Ra7 {[%emt 0:00:25]} Rxh2 {[%emt 0:00:38]} 37. Ka4 {[%emt 0:00:33]} f5 {[%emt 0:00:46]} 38. a3 {[%emt 0:00:18]} Bxb4 {[%emt 0:00:07]} 39. Kxb4 {[%emt 0:00:19]} f4 {[%emt 0:00:05]} 0-1

[Event "2nd Irena Warakomska Memorial-A"]
[Site "Suwalki"]
[Date "2018.08.03"]
[Round "3"]
[White "Godzwon, Iwo"]
[Black "Gumularz, Szymon"]
[Result "1-0"]
[ECO "B90"]
[WhiteElo "2222"]
[BlackElo "2458"]
[Annotator "ChessBase"]
[PlyCount "103"]
[EventDate "2018.08.01"]
[EventType "swiss"]
[EventCountry "POL"]
[SourceTitle "playchess.com"]
[Source "ChessBase"]
[SourceQuality "1"]
[TimeControl "40/5400+30:1800+30"]

1. e4 {[%emt 0:00:00]} c5 {[%emt 0:00:00]} 2. Nf3 {[%emt 0:00:04]} d6 {[%emt 0:00:00]} 3. d4 {[%emt 0:00:04]} cxd4 {[%emt 0:00:00]} 4. Nxd4 {[%emt 0:00:03]} Nf6 {[%emt 0:00:00]} 5. Nc3 {[%emt 0:00:04]} a6 {[%emt 0:00:06]} 6. Be3 {[%emt 0:00:09]} e6 {[%emt 0:02:36]} 7. g4 {[%emt 0:02:29]} b5 {[%emt 0:09:44]} 8. g5 {[%emt 0:04:48]} Nfd7 {[%emt 0:00:08]} 9. a3 {[%emt 0:03:54]} Bb7 {[%emt 0:03:55]} 10. h4 {[%emt 0:11:35]} Nb6 {[%emt 0:08:25]} 11. Qh5 {[%emt 0:04:22]} g6 {[%emt 0:02:10]} 12. Qg4 {[%emt 0:03:03]} e5 {[%emt 0:19:34]} 13. Nb3 {[%emt 0:11:08]} h5 {[%emt 0:03:51]} 14. gxh6 {[%emt 0:02:28]} Bxh6 {[%emt 0:05:23]} 15. O-O-O {[%emt 0:03:20]} Bxe3+ {[%emt 0:04:24]} 16. fxe3 {[%emt 0:00:14]} Qe7 {[%emt 0:09:35]} 17. Na5 {[%emt 0:09:54]} Bc8 {[%emt 0:00:49]} 18. Qg3 {[%emt 0:01:33]} Be6 {[%emt 0:03:17]} 19. Nd5 {[%emt 0:08:15]} Bxd5 {[%emt 0:05:02]} 20. exd5 {[%emt 0:00:04]} Qc7 {[%emt 0:01:16]} 21. h5 {[%emt 0:12:13]} N8d7 {[%emt 0:06:58]} 22. Bg2 {[%emt 0:02:58]} O-O-O {[%emt 0:03:45]} 23. hxg6 {[%emt 0:00:09]} fxg6 {[%emt 0:00:24]} 24. Nc6 {[%emt 0:00:07]} Rdf8 {[%emt 0:00:38]} 25. Qxg6 {[%emt 0:00:51]} Nc4 {[%emt 0:01:10]} 26. Rxh8 {[%emt 0:04:48]} Rxh8 {[%emt 0:00:03]} 27. Qg7 {[%emt 0:01:40]} Rh2 {[%emt 0:03:11]} 28. Qg3 {[%emt 0:00:06]} Rh6 {[%emt 0:01:10]} 29. Bh3 {[%emt 0:00:27]} Kb7 {[%emt 0:00:16]} 30. Bxd7 {[%emt 0:00:57]} Qxd7 {[%emt 0:00:04]} 31. Qg8 {[%emt 0:00:03]} Qc7 {[%emt 0:01:05]} 32. Rg1 {[%emt 0:02:41]} Rh7 {[%emt 0:01:11]} 33. e4 {[%emt 0:00:20]} Kb6 {[%emt 0:00:55]} 34. Qg3 {[%emt 0:02:48]} Kb7 {[%emt 0:00:16]} 35. Qg8 {[%emt 0:02:53]} Kb6 {[%emt 0:00:08]} 36. Rf1 {[%emt 0:00:57]} Qg7 {[%emt 0:01:58]} 37. Qd8+ {[%emt 0:01:30]} Qc7 {[%emt 0:00:15]} 38. Qf6 {[%emt 0:00:38]} Rh2 {[%emt 0:01:14]} 39. Qg5 {[%emt 0:02:02]} Rh3 {[%emt 0:02:24]} 40. Qg1+ {[%emt 0:00:13]} Ne3 {[%emt 0:00:00]} 41. Re1 {[%emt 0:00:09]} Qh7 {[%emt 0:01:01]} 42. Kd2 {[%emt 0:10:01]} Qxe4 {[%emt 0:10:19]} 43. Rxe3 {[%emt 0:00:04]} Qf4 {[%emt 0:00:03]} 44. Ke2 {[%emt 0:00:09]} Rh2+ {[%emt 0:00:18]} 45. Ke1 {[%emt 0:00:03]} Qh4+ {[%emt 0:02:54]} 46. Rg3+ {[%emt 0:00:04]} Kc7 {[%emt 0:00:04]} 47. Qa7+ {[%emt 0:00:03]} Kc8 {[%emt 0:00:03]} 48. Qb8+ {[%emt 0:00:03]} Kd7 {[%emt 0:00:04]} 49. Qb7+ {[%emt 0:00:03]} Ke8 {[%emt 0:00:04]} 50. Qc8+ {[%emt 0:00:02]} Kf7 {[%emt 0:00:19]} 51. Qe6+ {[%emt 0:00:03]} Kf8 {[%emt 0:00:03]} 52. Qg8# {[%emt 0:00:04]} 1-0

[Event "2nd Irena Warakomska Memorial-A"]
[Site "Suwalki"]
[Date "2018.08.03"]
[Round "3"]
[White "Buraczewski, Rafal"]
[Black "Zgadzaj, Rafal"]
[Result "0-1"]
[ECO "A43"]
[WhiteElo "2221"]
[BlackElo "2154"]
[Annotator "NA"]
[PlyCount "112"]
[EventDate "2018.08.01"]
[EventType "swiss"]
[EventCountry "POL"]
[SourceTitle "playchess.com"]
[Source "ChessBase"]
[SourceQuality "1"]
[TimeControl "40/5400+30:1800+30"]

1. d4 {[%emt 0:00:00]} g6 2. c4 {[%emt 0:00:00]} Bg7 {[%emt 0:00:00]} 3. Nc3 c5 4. d5 {[%emt 0:00:20]} Bxc3+ {[%emt 0:00:00]} 5. bxc3 {[%emt 0:00:06]} f5 {[%emt 0:00:00]} 6. Qc2 {[%emt 0:04:50]} Nf6 {[%emt 0:05:58]} 7. Bh6 {[%emt 0:12:58]} d6 8. h4 {[%emt 0:10:29]} Qa5 {[%emt 0:07:39]} 9. e3 {[%emt 0:08:14]} Nbd7 {[%emt 0:02:15]} 10. Nh3 {[%emt 0:04:29]} Rg8 {[%emt 0:09:02]} 11. Bg5 {[%emt 0:16:34]} Ne5 {[%emt 0:07:51]} 12. Bxf6 {[%emt 0:01:07]} exf6 {[%emt 0:02:58]} 13. Be2 {[%emt 0:09:52]} Bd7 {[%emt 0:06:30]} 14. f4 Ng4 15. Bxg4 {[%emt 0:00:50]} fxg4 {[%emt 0:00:32]} 16. Nf2 {[%emt 0:00:01]} f5 {[%emt 0:00:02]} 17. e4 {[%emt 0:00:48]} g3 {[%emt 0:21:27]} 18. Nd1 {[%emt 0:01:42]} Ba4 {[%emt 0:05:05]} 19. Qd3 {[%emt 0:08:36]} O-O-O {[%emt 0:03:13]} 20. O-O {[%emt 0:02:26]} fxe4 {[%emt 0:03:38]} 21. Qxe4 {[%emt 0:00:30]} Bxd1 {[%emt 0:06:05]} 22. Raxd1 {[%emt 0:03:41]} Rge8 23. Qd3 {[%emt 0:00:12]} Qxa2 {[%emt 0:02:20]} 24. Ra1 {[%emt 0:00:09]} Qe2 {[%emt 0:00:23]} 25. Qxg3 {[%emt 0:02:02]} Qxc4 {[%emt 0:07:00]} 26. Rxa7 {[%emt 0:00:42]} Kb8 {[%emt 0:00:47]} 27. Raa1 {[%emt 0:00:14]} Qxd5 {[%emt 0:03:17]} 28. Rad1 {[%emt 0:05:07]} Qf5 29. c4 d5 {[%emt 0:02:07]} 30. cxd5 {[%emt 0:00:34]} Rxd5 {[%emt 0:00:00]} 31. Rxd5 {[%emt 0:00:02]} Qxd5 {[%emt 0:00:00]} 32. f5+ {[%emt 0:00:31]} Qe5 33. Qxe5+ {[%emt 0:01:11]} Rxe5 {[%emt 0:00:00]} 34. f6 {[%emt 0:00:08]} Re8 {[%emt 0:00:07]} 35. g4 {[%emt 0:00:50]} Kc7 {[%emt 0:04:46]} 36. g5 {[%emt 0:00:26]} b5 {[%emt 0:03:00]} 37. Kf2 {[%emt 0:02:15]} b4 38. Re1 {[%emt 0:00:00]} Rb8 {[%emt 0:01:43]} 39. Ke3 {[%emt 0:00:00]} Kc6 {[%emt 0:00:00]} 40. Kd2 {[%emt 0:00:00]} c4 {[%emt 0:00:00]} 41. Kc2 {[%emt 0:14:26]} Kc5 {[%emt 0:14:56]} 42. Rf1 Kd6 {[%emt 0:00:11]} 43. Rd1+ {[%emt 0:07:33]} Ke5 {[%emt 0:02:53]} 44. Re1+ {[%emt 0:06:10]} Kf5 45. Re7 {[%emt 0:00:10]} b3+ {[%emt 0:01:50]} 46. Kb1 {[%emt 0:00:20]} c3 47. Rc7 {[%emt 0:00:06]} c2+ {[%emt 0:03:11]} 48. Kb2 {[%emt 0:02:16]} Kg4 {[%emt 0:03:22]} 49. Rc4+ {[%emt 0:07:05]} Kg3 50. Re4 {[%emt 0:00:14]} Rc8 {[%emt 0:01:38]} 51. Re1 {[%emt 0:00:03]} Kxh4 {[%emt 0:01:02]} 52. Rg1 {[%emt 0:01:04]} Rc7 {[%emt 0:03:05]} 53. Kc1 {[%emt 0:01:29]} Kh5 {[%emt 0:00:32]} 54. Kb2 h6 {[%emt 0:00:05]} 55. gxh6 {[%emt 0:00:55]} Kxh6 {[%emt 0:00:52]} 56. Rf1 c1=Q+ 0-1

[Event "2nd Irena Warakomska Memorial-A"]
[Site "Suwalki"]
[Date "2018.08.03"]
[Round "3"]
[White "Pietruszewski, Marcin"]
[Black "Warakomski, Tomasz"]
[Result "0-1"]
[ECO "B56"]
[WhiteElo "2208"]
[BlackElo "2512"]
[Annotator "ChessBase"]
[PlyCount "80"]
[EventDate "2018.08.01"]
[EventType "swiss"]
[EventCountry "POL"]
[SourceTitle "playchess.com"]
[Source "ChessBase"]
[SourceQuality "1"]
[TimeControl "40/5400+30:1800+30"]

1. e4 {[%emt 0:00:00]} c5 {[%emt 0:00:00]} 2. Nf3 {[%emt 0:00:00]} d6 {[%emt 0:00:16]} 3. d4 {[%emt 0:00:00]} cxd4 {[%emt 0:00:04]} 4. Nxd4 {[%emt 0:00:00]} Nf6 {[%emt 0:00:04]} 5. Nc3 {[%emt 0:00:00]} Nc6 {[%emt 0:00:02]} 6. Nb3 {[%emt 0:08:34]} e6 {[%emt 0:06:00]} 7. Be2 {[%emt 0:00:11]} Be7 {[%emt 0:03:22]} 8. g4 {[%emt 0:00:12]} d5 {[%emt 0:04:24]} 9. exd5 {[%emt 0:04:10]} Nxd5 {[%emt 0:00:04]} 10. Nxd5 {[%emt 0:04:09]} exd5 {[%emt 0:00:15]} 11. Be3 {[%emt 0:00:22]} O-O {[%emt 0:00:40]} 12. Qd2 {[%emt 0:11:14]} Ne5 {[%emt 0:03:37]} 13. Rg1 {[%emt 0:01:02]} Nc4 {[%emt 0:02:15]} 14. Bxc4 {[%emt 0:01:13]} dxc4 {[%emt 0:00:05]} 15. Qxd8 {[%emt 0:06:48]} Rxd8 {[%emt 0:00:12]} 16. Nd4 {[%emt 0:00:04]} Bd7 {[%emt 0:25:13]} 17. c3 {[%emt 0:01:16]} b5 {[%emt 0:00:13]} 18. a3 {[%emt 0:00:18]} a5 {[%emt 0:00:57]} 19. Nc2 {[%emt 0:12:48]} b4 {[%emt 0:09:26]} 20. axb4 {[%emt 0:01:13]} axb4 {[%emt 0:00:05]} 21. Rxa8 {[%emt 0:00:25]} Rxa8 {[%emt 0:00:05]} 22. cxb4 {[%emt 0:00:12]} Bxb4+ {[%emt 0:02:04]} 23. Ke2 {[%emt 0:00:19]} Bf8 {[%emt 0:09:31]} 24. Bd4 {[%emt 0:01:07]} f5 {[%emt 0:04:38]} 25. h3 {[%emt 0:22:03]} Rd8 {[%emt 0:11:50]} 26. Bc3 {[%emt 0:06:12]} Ba4 {[%emt 0:00:42]} 27. Ne3 {[%emt 0:02:18]} f4 {[%emt 0:00:19]} 28. Nxc4 {[%emt 0:02:10]} Bb5 {[%emt 0:00:14]} 29. b3 {[%emt 0:00:09]} f3+ {[%emt 0:00:05]} 30. Ke3 {[%emt 0:09:33]} Bc5+ {[%emt 0:00:05]} 31. Kf4 {[%emt 0:00:02]} Bxf2 {[%emt 0:00:07]} 32. Rf1 {[%emt 0:03:39]} Rf8+ {[%emt 0:00:34]} 33. Ke5 {[%emt 0:00:14]} Ba7 {[%emt 0:03:13]} 34. Bb4 {[%emt 0:03:10]} Rf7 {[%emt 0:04:34]} 35. Kd5 {[%emt 0:01:40]} f2 {[%emt 0:00:51]} 36. Bc5 {[%emt 0:00:34]} Rd7+ {[%emt 0:00:46]} 37. Bd6 {[%emt 0:00:02]} Bb8 {[%emt 0:00:30]} 38. Kc5 {[%emt 0:00:57]} Bxc4 {[%emt 0:00:10]} 39. bxc4 {[%emt 0:00:01]} Rxd6 {[%emt 0:00:49]} 40. Rxf2 {[%emt 0:00:00]} Rd3 {[%emt 0:00:00]} 0-1

[Event "2nd Irena Warakomska Memorial-A"]
[Site "Suwalki"]
[Date "2018.08.03"]
[Round "3"]
[White "Popiol, Michal"]
[Black "Kuchava, Ana"]
[Result "1/2-1/2"]
[ECO "D37"]
[WhiteElo "2164"]
[BlackElo "2124"]
[Annotator "NA"]
[PlyCount "70"]
[EventDate "2018.08.01"]
[EventType "swiss"]
[EventCountry "POL"]
[SourceTitle "playchess.com"]
[Source "ChessBase"]
[SourceQuality "1"]
[TimeControl "40/5400+30:1800+30"]

1. d4 {[%emt 0:00:00]} d5 {[%emt 0:01:53]} 2. c4 {[%emt 0:00:00]} e6 {[%emt 0:00:10]} 3. Nc3 {[%emt 0:00:00]} Be7 {[%emt 0:00:27]} 4. Nf3 {[%emt 0:00:07]} Nf6 {[%emt 0:00:05]} 5. Bf4 {[%emt 0:00:08]} c5 {[%emt 0:00:39]} 6. dxc5 {[%emt 0:00:10]} Bxc5 {[%emt 0:00:04]} 7. e3 {[%emt 0:00:08]} Nc6 {[%emt 0:00:08]} 8. a3 {[%emt 0:00:14]} O-O {[%emt 0:00:26]} 9. Qc2 {[%emt 0:00:51]} Qa5 {[%emt 0:01:55]} 10. Rd1 {[%emt 0:00:22]} Be7 {[%emt 0:00:11]} 11. Bd3 {[%emt 0:01:53]} h6 {[%emt 0:04:36]} 12. O-O {[%emt 0:01:12]} a6 {[%emt 0:00:28]} 13. h3 {[%emt 0:08:47]} Bd7 {[%emt 0:11:31]} 14. cxd5 {[%emt 0:03:43]} exd5 {[%emt 0:00:39]} 15. Ne5 {[%emt 0:03:51]} Be6 {[%emt 0:05:13]} 16. Nxc6 {[%emt 0:39:13]} bxc6 {[%emt 0:00:07]} 17. e4 {[%emt 0:00:11]} Rfc8 {[%emt 0:13:24]} 18. Qd2 {[%emt 0:17:17]} Qd8 {[%emt 0:06:45]} 19. Bb1 Bf8 {[%emt 0:18:16]} 20. Rfe1 {[%emt 0:02:49]} a5 {[%emt 0:12:30]} 21. Be5 dxe4 {[%emt 0:08:16]} 22. Qe3 {[%emt 0:10:19]} Nd5 {[%emt 0:02:00]} 23. Qxe4 {[%emt 0:00:58]} g6 {[%emt 0:01:36]} 24. Ba2 {[%emt 0:00:53]} Bg7 {[%emt 0:04:42]} 25. Nxd5 {[%emt 0:03:02]} cxd5 {[%emt 0:00:05]} 26. Bxd5 {[%emt 0:00:16]} Bxd5 {[%emt 0:01:02]} 27. Rxd5 {[%emt 0:00:44]} Qb6 {[%emt 0:00:08]} 28. Bxg7 {[%emt 0:01:49]} Kxg7 {[%emt 0:00:07]} 29. Qe5+ {[%emt 0:00:10]} Qf6 {[%emt 0:01:15]} 30. Rxa5 {[%emt 0:02:15]} Rxa5 {[%emt 0:00:16]} 31. Qxa5 {[%emt 0:00:03]} Qxb2 {[%emt 0:00:10]} 32. a4 {[%emt 0:01:13]} Rc4 {[%emt 0:03:42]} 33. Qb5 {[%emt 0:01:59]} Qd4 {[%emt 0:01:25]} 34. a5 {[%emt 0:00:33]} Rc5 {[%emt 0:01:18]} 35. Qb6 {[%emt 0:00:47]} Qc3 {[%emt 0:00:24]} 1/2-1/2

[Event "2nd Irena Warakomska Memorial-A"]
[Site "Suwalki"]
[Date "2018.08.03"]
[Round "3"]
[White "Ocytko, Andrzej"]
[Black "Sliwerski, Radoslaw"]
[Result "1/2-1/2"]
[ECO "B50"]
[WhiteElo "2155"]
[BlackElo "1990"]
[Annotator "NA"]
[PlyCount "69"]
[EventDate "2018.08.01"]
[EventType "swiss"]
[EventCountry "POL"]
[SourceTitle "playchess.com"]
[Source "ChessBase"]
[SourceQuality "1"]
[TimeControl "40/5400+30:1800+30"]

1. e4 {[%emt 0:00:00]} c5 {[%emt 0:02:25]} 2. Nf3 {[%emt 0:00:03]} d6 {[%emt 0:00:08]} 3. c4 {[%emt 0:02:40]} Nc6 {[%emt 0:02:07]} 4. d4 {[%emt 0:00:53]} cxd4 {[%emt 0:00:06]} 5. Nxd4 {[%emt 0:00:05]} Nf6 {[%emt 0:00:29]} 6. Nc3 {[%emt 0:00:08]} g6 {[%emt 0:00:03]} 7. Be2 {[%emt 0:01:50]} Bg7 {[%emt 0:00:14]} 8. Be3 {[%emt 0:04:45]} O-O {[%emt 0:08:54]} 9. Qd2 Bd7 {[%emt 0:16:41]} 10. f3 {[%emt 0:12:17]} a6 {[%emt 0:03:35]} 11. O-O Rc8 {[%emt 0:08:47]} 12. Rac1 {[%emt 0:03:41]} Re8 {[%emt 0:03:34]} 13. Rfd1 Qa5 {[%emt 0:17:13]} 14. Nb3 {[%emt 0:17:37]} Qc7 15. Nd5 {[%emt 0:05:55]} Qb8 {[%emt 0:01:41]} 16. Nb6 {[%emt 0:04:20]} Rcd8 {[%emt 0:02:45]} 17. Nd4 {[%emt 0:04:37]} Nxd4 {[%emt 0:02:09]} 18. Bxd4 {[%emt 0:00:07]} Be6 {[%emt 0:00:36]} 19. Be3 {[%emt 0:05:13]} Nd7 {[%emt 0:01:18]} 20. Qb4 {[%emt 0:04:09]} Nxb6 {[%emt 0:04:38]} 21. Bxb6 {[%emt 0:00:08]} Rc8 {[%emt 0:00:50]} 22. a4 {[%emt 0:02:04]} Bh6 {[%emt 0:08:21]} 23. Rb1 {[%emt 0:00:21]} a5 {[%emt 0:03:14]} 24. Qc3 {[%emt 0:09:25]} Bg7 {[%emt 0:04:18]} 25. Bd4 {[%emt 0:05:25]} Bxd4+ {[%emt 0:00:32]} 26. Qxd4 {[%emt 0:01:33]} Qc7 {[%emt 0:01:09]} 27. b3 {[%emt 0:01:10]} Qc5 {[%emt 0:00:36]} 28. Qxc5 {[%emt 0:04:48]} dxc5 {[%emt 0:00:32]} 29. Kf2 {[%emt 0:00:38]} Red8 {[%emt 0:00:09]} 30. Ke3 {[%emt 0:00:26]} f6 {[%emt 0:00:33]} 31. f4 {[%emt 0:00:20]} h6 {[%emt 0:00:38]} 32. g4 Kg7 {[%emt 0:05:28]} 33. Bf3 {[%emt 0:09:10]} b6 {[%emt 0:00:13]} 34. Rxd8 {[%emt 0:00:44]} Rxd8 {[%emt 0:00:01]} 35. Rd1 {[%emt 0:00:06]} 1/2-1/2

[Event "2nd Irena Warakomska Memorial-A"]
[Site "Suwalki"]
[Date "2018.08.03"]
[Round "3"]
[White "Ulanowski, Karol"]
[Black "Punin, Andrii"]
[Result "1/2-1/2"]
[ECO "B18"]
[WhiteElo "2149"]
[BlackElo "2339"]
[Annotator "NA"]
[PlyCount "74"]
[EventDate "2018.08.01"]
[EventType "swiss"]
[EventCountry "POL"]
[SourceTitle "playchess.com"]
[Source "ChessBase"]
[SourceQuality "1"]
[TimeControl "40/5400+30:1800+30"]

1. e4 c6 2. d4 d5 3. Nc3 dxe4 4. Nxe4 Bf5 5. Ng3 Bg6 6. h4 h6 7. Nf3 e6 8. Ne5 Bh7 9. Be3 Nd7 10. f4 Ngf6 11. Qd2 Be7 12. O-O-O O-O 13. c4 Qc7 14. Bd3 Bxd3 15. Qxd3 Rfd8 16. Qc3 c5 17. Kb1 cxd4 18. Bxd4 Bc5 19. Rhe1 Bxd4 20. Rxd4 Nxe5 21. fxe5 Rxd4 22. Qxd4 Rd8 23. Qf4 Ne8 24. a3 f5 25. Ne2 Qd7 26. g4 Qd3+ 27. Ka1 Rc8 28. gxf5 Rxc4 29. Qf2 exf5 30. Nc3 Qd4 31. Qf3 Qxh4 32. Rh1 Qf4 33. Qd5+ Kf8 34. Rd1 Rc6 35. Rd4 Qc1+ 36. Ka2 Rxc3 37. bxc3 Qc2+ 1/2-1/2

[Event "2nd Irena Warakomska Memorial-A"]
[Site "Suwalki"]
[Date "2018.08.03"]
[Round "3"]
[White "Harshini, A."]
[Black "Szostko, Jakub"]
[Result "1-0"]
[ECO "C91"]
[WhiteElo "2124"]
[BlackElo "2299"]
[Annotator "ChessBase"]
[PlyCount "167"]
[EventDate "2018.08.01"]
[EventType "swiss"]
[EventCountry "POL"]
[SourceTitle "playchess.com"]
[Source "ChessBase"]
[SourceQuality "1"]
[TimeControl "40/5400+30:1800+30"]

1. e4 e5 2. Nf3 Nc6 3. Bb5 a6 4. Ba4 Nf6 5. O-O Be7 6. Re1 b5 7. Bb3 d6 8. c3 O-O 9. d4 Bg4 10. d5 Na5 11. Bc2 Qc8 12. h3 Bd7 13. Nbd2 c6 14. dxc6 Qxc6 15. Nf1 Rfc8 16. Bd3 Nb7 17. Ng3 g6 18. Bh6 Nc5 19. Qd2 Nxd3 20. Qxd3 Ne8 21. Rac1 Be6 22. b3 a5 23. Rc2 f6 24. Rd1 a4 25. Nd2 axb3 26. axb3 d5 27. f4 dxe4 28. Qxe4 Qxe4 29. Ngxe4 f5 30. Ng5 Bxg5 31. Bxg5 e4 32. c4 Ra7 33. Rdc1 Rac7 34. Bh4 Nd6 35. c5 e3 36. Nf1 e2 37. Rxe2 Ne4 38. b4 Bc4 39. Rb2 Bxf1 40. Kxf1 Rd7 41. Bf2 Kf7 42. Rbc2 Nxf2 43. Kxf2 Rd4 44. Rb2 Rxf4+ 45. Kg3 Rd4 46. Ra1 Ke6 47. Ra5 Rb8 48. Ra6+ Kd7 49. Ra7+ Kc6 50. Rxh7 Re8 51. Ra7 Re6 52. Ra8 Kb7 53. Rg8 Kc6 54. Rb8 Ree4 55. Rb6+ Kd5 56. Rxb5 Kc4 57. Rb6 Kc3 58. Rf2 Rxb4 59. Rxg6 f4+ 60. Kg4 Rbc4 61. Rf6 Rxc5 62. R6xf4 Re8 63. h4 Rd5 64. g3 Rg8+ 65. Kh3 Rd1 66. g4 Rh1+ 67. Kg3 Rg1+ 68. Rg2 Rh1 69. g5 Kd3 70. Kg4 Ke3 71. Rg3+ Ke2 72. Re4+ Kd2 73. Kh5 Rh8+ 74. Kg6 R8xh4 75. Rxh4 Rxh4 76. Kg7 Ke2 77. g6 Kf2 78. Rc3 Rb4 79. Kh7 Rh4+ 80. Kg8 Rb4 81. g7 Kg2 82. Rc6 Kg3 83. Kh7 Rb7 84. Kh8 1-0

[Event "2nd Irena Warakomska Memorial-A"]
[Site "Suwalki"]
[Date "2018.08.03"]
[Round "3"]
[White "Walkusz, Witoslaw"]
[Black "Nowak, Lukasz"]
[Result "0-1"]
[ECO "B51"]
[WhiteElo "2121"]
[BlackElo "2280"]
[Annotator "NA"]
[PlyCount "80"]
[EventDate "2018.08.01"]
[EventType "swiss"]
[EventCountry "POL"]
[SourceTitle "playchess.com"]
[Source "ChessBase"]
[SourceQuality "1"]
[TimeControl "40/5400+30:1800+30"]

1. e4 c5 2. Nf3 d6 3. Bb5+ Nd7 4. a4 Ngf6 5. Nc3 a6 6. Bc4 b6 7. O-O Bb7 8. d3 e6 9. h3 Be7 10. Re1 O-O 11. Bf4 Qc7 12. Qe2 Rfe8 13. Bg3 Bf8 14. Rad1 Bc6 15. Qf1 Qb7 16. Bb3 b5 17. Ra1 d5 18. exd5 exd5 19. Ne5 Nxe5 20. Bxe5 Nd7 21. Bf4 c4 22. Ba2 Nc5 23. Rxe8 Rxe8 24. Nd1 Nxa4 25. b3 cxb3 26. cxb3 Nc5 27. d4 Ne6 28. Be3 g6 29. Nb2 Bg7 30. Qd3 Qb6 31. Rd1 a5 32. Bb1 a4 33. b4 Ra8 34. Qa3 Qd8 35. Nd3 Nxd4 36. Kf1 Nb3 37. Nc5 d4 38. Nxb3 axb3 39. Qxb3 Bd5 40. Qc2 dxe3 0-1